Workbook

Sheet Sheet1
A1: Instructions: Enter the date, your current dose and other requested info in the pink-shaded cells below (most of the other cells are locked, so cannot be selected). Your current dose will appear in the table below and the graph. Enter your symptom ratings for today and voila - a suggested taper rate and dose info will appear. | J1: Symptom ratings guidelines: 10 - symptomless; 7-9 - minor, annoying, but still able to function; 4-6 - significant, interferes with some functions; 0-3 - severe, disabling, unable to perform most activities. Note: the 'Taper Rate' (blue) cells may be manually changed if you desire a faster or slower taper rate. Values of 0 (hold) thru 6 (1.5x linear) are allowed.
A3: Current Dose (mg) | B3: 0.5 | R3: Tapering Setpoints
A4: Dose in Intact Pill (mg) | B4: 0.5 | R4: 30-39 | T4: (1) .33 * rate
A5: Proposed Taper Duration (days) | B5: 200 | C5: =2*B3/B5 -> 0.005 | E5: base taper decrease | R5: 40-54 | T5: (2) .67 * rate
A6: Taper Start Date (mm/dd/yyyy) | B6: 2017-11-01 | C6: =(B3-C5)/B3 -> 0.99 | E6: base taper rate | R6: 55-69 | T6: (3) Std rate
A7: Dry or Liquid Taper (enter 'Dry' or 'Liquid') | B7: Liquid | C7: =AVERAGE(1,C6,C6) -> 0.9933333333 | E7: slower taper rate | R7: 70-79 | T7: (4) Hybrid rate
A8: Liquid Taperers Only - Enter Initial Liquid Volume (ml) | B8: 200 | C8: =AVERAGE(1,1,C6) -> 0.9966666667 | E8: way slow taper rate | R8: 80-89 | T8: (5) Linear rate
A9: Dry Cutters Only - Enter Average Intact Pill Weight (g) | R9: 90+ | T9: (6) 1.5 * Linear
A11: Your Base Tapering Rate is: | B11: =E11/B3 -> 1.000% | C11: equals | E11: =B3-C13*C6 -> 0.005 | F11: mg/day (initially) | H11: Physical Symptom Ratings (0-10 points per category; 10 = symptomless) | M11: Mental/Emotional Symptom Ratings (0-10 points per category; 10 = symptomless) | R11: The taper rate may be manually changed
A12: Day Number | B12: Date | C12: Yesterday's Dose (mg) | D12: Dose for Graph | E12: Today's Dose (mg) | F12: Amount to take (ml if liquid, g if dry) | G12: Today's Cut (%) | H12: Pain | I12: Heart | J12: GI Health | K12: Shakes | L12: Stamina | M12: Sleep | N12: Clarity | O12: Vertigo | P12: Anxiety / Fear | Q12: Depression | R12: Overall Rating | S12: Adjusted Rating | T12: Suggested Taper Rate
A13: 1 | B13: =B6 -> 2017-11-01 | C13: =B3 -> 0.500 | D13: =IF(C13="",-5,C13) -> 0.500 | E13: =IF(T13="","",IF(T13=0,C13,IF(T13=1,(C13*C$8),IF(T13=2,(C13*C$7),IF(T13=3,(C13*C$6),IF(T13=4,AVERAGE((C13*C$6),(C13*C$6),(C13*C$6),(C13*C$6),(C13-C$5)),IF(T13=5,(C13-C$5),IF(T13=6,(C13-1.5*C$5),"blue")))))))) ->  | F13: =IF(H13="","",IF(B$7="Dry",ROUND(E13/B$4*B$9,3)&" grams",IF(B$7="Liquid",ROUND(E13/B$4*B$8,2)&" ml","Error"))) ->  | G13: =IF(T13="","",(C13-E13)/C13) ->  | R13: =IF(H13="","",SUM(H13:Q13)) ->  | S13: =IF(R13="",-5,AVERAGE((B$3-E13)/B$3*100,R13)) -> -5.0 | T13: =IF(R13="","",IF(R13>89,6,IF(R13>79,5,IF(R13>69,4,IF(R13>54,3,IF(R13>39,2,IF(R13>29,1,0))))))) -> 
A14: =A13+1 -> 2 | B14: =B13+1 -> 2017-11-02 | C14: =E13 ->  | D14: =IF(C14="",-5,C14) -> -5.000 | E14: =IF(T14="","",IF(T14=0,C14,IF(T14=1,(C14*C$8),IF(T14=2,(C14*C$7),IF(T14=3,(C14*C$6),IF(T14=4,AVERAGE((C14*C$6),(C14*C$6),(C14*C$6),(C14*C$6),(C14-C$5)),IF(T14=5,(C14-C$5),IF(T14=6,(C14-1.5*C$5),"blue")))))))) ->  | F14: =IF(H14="","",IF(B$7="Dry",ROUND(E14/B$4*B$9,3)&" grams",IF(B$7="Liquid",ROUND(E14/B$4*B$8,2)&" ml","Error"))) ->  | R14: =IF(H14="","",SUM(H14:Q14)) ->  | S14: =IF(R14="",-5,AVERAGE((B$3-E14)/B$3*100,R14)) -> -5.0 | T14: =IF(R14="","",IF(R14>89,6,IF(R14>79,5,IF(R14>69,4,IF(R14>54,3,IF(R14>39,2,IF(R14>29,1,0))))))) -> 
A15: =A14+1 -> 3 | B15: =B14+1 -> 2017-11-03 | C15: =E14 ->  | D15: =IF(C15="",-5,C15) -> -5.000 | E15: =IF(T15="","",IF(T15=0,C15,IF(T15=1,(C15*C$8),IF(T15=2,(C15*C$7),IF(T15=3,(C15*C$6),IF(T15=4,AVERAGE((C15*C$6),(C15*C$6),(C15*C$6),(C15*C$6),(C15-C$5)),IF(T15=5,(C15-C$5),IF(T15=6,(C15-1.5*C$5),"blue")))))))) ->  | F15: =IF(H15="","",IF(B$7="Dry",ROUND(E15/B$4*B$9,3)&" grams",IF(B$7="Liquid",ROUND(E15/B$4*B$8,2)&" ml","Error"))) ->  | R15: =IF(H15="","",SUM(H15:Q15)) ->  | S15: -5.0 | T15: =IF(R15="","",IF(R15>89,6,IF(R15>79,5,IF(R15>69,4,IF(R15>54,3,IF(R15>39,2,IF(R15>29,1,0))))))) -> 
A16: 4 | B16: =B15+1 -> 2017-11-04 | C16: =E15 ->  | D16: -5.000 | F16: =IF(H16="","",IF(B$7="Dry",ROUND(E16/B$4*B$9,3)&" grams",IF(B$7="Liquid",ROUND(E16/B$4*B$8,2)&" ml","Error"))) ->  | R16: =IF(H16="","",SUM(H16:Q16)) ->  | S16: -5.0 | T16: =IF(R16="","",IF(R16>89,6,IF(R16>79,5,IF(R16>69,4,IF(R16>54,3,IF(R16>39,2,IF(R16>29,1,0))))))) -> 
A17: 5 | B17: =B16+1 -> 2017-11-05 | C17: =E16 ->  | D17: -5.000 | F17: =IF(H17="","",IF(B$7="Dry",ROUND(E17/B$4*B$9,3)&" grams",IF(B$7="Liquid",ROUND(E17/B$4*B$8,2)&" ml","Error"))) ->  | R17: =IF(H17="","",SUM(H17:Q17)) ->  | S17: -5.0
A18: 6 | B18: 2017-11-06 | D18: -5.000 | F18: =IF(H18="","",IF(B$7="Dry",ROUND(E18/B$4*B$9,3)&" grams",IF(B$7="Liquid",ROUND(E18/B$4*B$8,2)&" ml","Error"))) ->  | S18: -5.0
A19: 7 | B19: 2017-11-07 | D19: -5.000 | F19: =IF(H19="","",IF(B$7="Dry",ROUND(E19/B$4*B$9,3)&" grams",IF(B$7="Liquid",ROUND(E19/B$4*B$8,2)&" ml","Error"))) ->  | S19: -5.0
A20: 8 | B20: 2017-11-08 | D20: -5.000 | F20: =IF(H20="","",IF(B$7="Dry",ROUND(E20/B$4*B$9,3)&" grams",IF(B$7="Liquid",ROUND(E20/B$4*B$8,2)&" ml","Error"))) ->  | G20: =IF(T20="","",(C20-E20)/C20) ->  | S20: -5.0
A21: 9 | B21: 2017-11-09 | D21: -5.000 | F21: =IF(H21="","",IF(B$7="Dry",ROUND(E21/B$4*B$9,3)&" grams",IF(B$7="Liquid",ROUND(E21/B$4*B$8,2)&" ml","Error"))) ->  | S21: -5.0
A22: 10 | B22: 2017-11-10 | D22: -5.000 | F22: =IF(H22="","",IF(B$7="Dry",ROUND(E22/B$4*B$9,3)&" grams",IF(B$7="Liquid",ROUND(E22/B$4*B$8,2)&" ml","Error"))) ->  | S22: -5.0
A23: 11 | B23: 2017-11-11 | D23: -5.000 | F23: =IF(H23="","",IF(B$7="Dry",ROUND(E23/B$4*B$9,3)&" grams",IF(B$7="Liquid",ROUND(E23/B$4*B$8,2)&" ml","Error"))) ->  | S23: -5.0
A24: 12 | B24: 2017-11-12 | D24: -5.000 | F24: =IF(H24="","",IF(B$7="Dry",ROUND(E24/B$4*B$9,3)&" grams",IF(B$7="Liquid",ROUND(E24/B$4*B$8,2)&" ml","Error"))) ->  | S24: -5.0
A25: 13 | B25: 2017-11-13 | D25: -5.000 | F25: =IF(H25="","",IF(B$7="Dry",ROUND(E25/B$4*B$9,3)&" grams",IF(B$7="Liquid",ROUND(E25/B$4*B$8,2)&" ml","Error"))) ->  | S25: -5.0
A26: 14 | B26: 2017-11-14 | D26: -5.000 | F26: =IF(H26="","",IF(B$7="Dry",ROUND(E26/B$4*B$9,3)&" grams",IF(B$7="Liquid",ROUND(E26/B$4*B$8,2)&" ml","Error"))) ->  | S26: -5.0
A27: 15 | B27: 2017-11-15 | D27: -5.000 | F27: =IF(H27="","",IF(B$7="Dry",ROUND(E27/B$4*B$9,3)&" grams",IF(B$7="Liquid",ROUND(E27/B$4*B$8,2)&" ml","Error"))) ->  | S27: -5.0
A28: 16 | B28: 2017-11-16 | D28: -5.000 | F28: =IF(H28="","",IF(B$7="Dry",ROUND(E28/B$4*B$9,3)&" grams",IF(B$7="Liquid",ROUND(E28/B$4*B$8,2)&" ml","Error"))) ->  | S28: -5.0
A29: 17 | B29: 2017-11-17 | D29: -5.000 | F29: =IF(H29="","",IF(B$7="Dry",ROUND(E29/B$4*B$9,3)&" grams",IF(B$7="Liquid",ROUND(E29/B$4*B$8,2)&" ml","Error"))) ->  | S29: -5.0
A30: 18 | B30: 2017-11-18 | D30: -5.000 | F30: =IF(H30="","",IF(B$7="Dry",ROUND(E30/B$4*B$9,3)&" grams",IF(B$7="Liquid",ROUND(E30/B$4*B$8,2)&" ml","Error"))) ->  | S30: -5.0
A31: 19 | B31: 2017-11-19 | D31: -5.000 | F31: =IF(H31="","",IF(B$7="Dry",ROUND(E31/B$4*B$9,3)&" grams",IF(B$7="Liquid",ROUND(E31/B$4*B$8,2)&" ml","Error"))) ->  | S31: -5.0
A32: 20 | B32: 2017-11-20 | D32: -5.000 | F32: =IF(H32="","",IF(B$7="Dry",ROUND(E32/B$4*B$9,3)&" grams",IF(B$7="Liquid",ROUND(E32/B$4*B$8,2)&" ml","Error"))) ->  | S32: -5.0
A33: 21 | B33: 2017-11-21 | D33: -5.000 | F33: =IF(H33="","",IF(B$7="Dry",ROUND(E33/B$4*B$9,3)&" grams",IF(B$7="Liquid",ROUND(E33/B$4*B$8,2)&" ml","Error"))) ->  | S33: -5.0
A34: 22 | B34: 2017-11-22 | D34: -5.000 | F34: =IF(H34="","",IF(B$7="Dry",ROUND(E34/B$4*B$9,3)&" grams",IF(B$7="Liquid",ROUND(E34/B$4*B$8,2)&" ml","Error"))) ->  | S34: -5.0
A35: 23 | B35: 2017-11-23 | D35: -5.000 | F35: =IF(H35="","",IF(B$7="Dry",ROUND(E35/B$4*B$9,3)&" grams",IF(B$7="Liquid",ROUND(E35/B$4*B$8,2)&" ml","Error"))) ->  | S35: -5.0
A36: 24 | B36: 2017-11-24 | D36: -5.000 | F36: =IF(H36="","",IF(B$7="Dry",ROUND(E36/B$4*B$9,3)&" grams",IF(B$7="Liquid",ROUND(E36/B$4*B$8,2)&" ml","Error"))) ->  | S36: -5.0
A37: 25 | B37: 2017-11-25 | D37: -5.000 | F37: =IF(H37="","",IF(B$7="Dry",ROUND(E37/B$4*B$9,3)&" grams",IF(B$7="Liquid",ROUND(E37/B$4*B$8,2)&" ml","Error"))) ->  | S37: -5.0
A38: 26 | B38: 2017-11-26 | D38: -5.000 | F38: =IF(H38="","",IF(B$7="Dry",ROUND(E38/B$4*B$9,3)&" grams",IF(B$7="Liquid",ROUND(E38/B$4*B$8,2)&" ml","Error"))) ->  | S38: -5.0
A39: 27 | B39: 2017-11-27 | D39: -5.000 | F39: =IF(H39="","",IF(B$7="Dry",ROUND(E39/B$4*B$9,3)&" grams",IF(B$7="Liquid",ROUND(E39/B$4*B$8,2)&" ml","Error"))) ->  | S39: -5.0
A40: 28 | B40: 2017-11-28 | D40: -5.000 | F40: =IF(H40="","",IF(B$7="Dry",ROUND(E40/B$4*B$9,3)&" grams",IF(B$7="Liquid",ROUND(E40/B$4*B$8,2)&" ml","Error"))) ->  | S40: -5.0
A41: 29 | B41: 2017-11-29 | D41: -5.000 | F41: =IF(H41="","",IF(B$7="Dry",ROUND(E41/B$4*B$9,3)&" grams",IF(B$7="Liquid",ROUND(E41/B$4*B$8,2)&" ml","Error"))) ->  | S41: -5.0
A42: 30 | B42: 2017-11-30 | D42: -5.000 | F42: =IF(H42="","",IF(B$7="Dry",ROUND(E42/B$4*B$9,3)&" grams",IF(B$7="Liquid",ROUND(E42/B$4*B$8,2)&" ml","Error"))) ->  | S42: -5.0
A43: =A42+1 -> 31 | B43: =B42+1 -> 2017-12-01 | D43: -5.000 | F43: =IF(H43="","",IF(B$7="Dry",ROUND(E43/B$4*B$9,3)&" grams",IF(B$7="Liquid",ROUND(E43/B$4*B$8,2)&" ml","Error"))) ->  | S43: -5.0
A44: 32 | B44: 2017-12-02 | D44: -5.000 | F44: =IF(H44="","",IF(B$7="Dry",ROUND(E44/B$4*B$9,3)&" grams",IF(B$7="Liquid",ROUND(E44/B$4*B$8,2)&" ml","Error"))) ->  | S44: -5.0
A45: 33 | B45: 2017-12-03 | D45: -5.000 | F45: =IF(H45="","",IF(B$7="Dry",ROUND(E45/B$4*B$9,3)&" grams",IF(B$7="Liquid",ROUND(E45/B$4*B$8,2)&" ml","Error"))) ->  | S45: -5.0
A46: 34 | B46: 2017-12-04 | D46: -5.000 | F46: =IF(H46="","",IF(B$7="Dry",ROUND(E46/B$4*B$9,3)&" grams",IF(B$7="Liquid",ROUND(E46/B$4*B$8,2)&" ml","Error"))) ->  | S46: -5.0
A47: 35 | B47: 2017-12-05 | D47: -5.000 | F47: =IF(H47="","",IF(B$7="Dry",ROUND(E47/B$4*B$9,3)&" grams",IF(B$7="Liquid",ROUND(E47/B$4*B$8,2)&" ml","Error"))) ->  | S47: -5.0
A48: 36 | B48: 2017-12-06 | D48: -5.000 | F48: =IF(H48="","",IF(B$7="Dry",ROUND(E48/B$4*B$9,3)&" grams",IF(B$7="Liquid",ROUND(E48/B$4*B$8,2)&" ml","Error"))) ->  | S48: -5.0
A49: 37 | B49: 2017-12-07 | D49: -5.000 | F49: =IF(H49="","",IF(B$7="Dry",ROUND(E49/B$4*B$9,3)&" grams",IF(B$7="Liquid",ROUND(E49/B$4*B$8,2)&" ml","Error"))) ->  | S49: -5.0
A50: 38 | B50: 2017-12-08 | D50: -5.000 | F50: =IF(H50="","",IF(B$7="Dry",ROUND(E50/B$4*B$9,3)&" grams",IF(B$7="Liquid",ROUND(E50/B$4*B$8,2)&" ml","Error"))) ->  | S50: -5.0
A51: 39 | B51: 2017-12-09 | D51: -5.000 | F51: =IF(H51="","",IF(B$7="Dry",ROUND(E51/B$4*B$9,3)&" grams",IF(B$7="Liquid",ROUND(E51/B$4*B$8,2)&" ml","Error"))) ->  | S51: -5.0
A52: 40 | B52: 2017-12-10 | D52: -5.000 | F52: =IF(H52="","",IF(B$7="Dry",ROUND(E52/B$4*B$9,3)&" grams",IF(B$7="Liquid",ROUND(E52/B$4*B$8,2)&" ml","Error"))) ->  | S52: -5.0
A53: 41 | B53: 2017-12-11 | D53: -5.000 | F53: =IF(H53="","",IF(B$7="Dry",ROUND(E53/B$4*B$9,3)&" grams",IF(B$7="Liquid",ROUND(E53/B$4*B$8,2)&" ml","Error"))) ->  | S53: -5.0
A54: 42 | B54: 2017-12-12 | D54: -5.000 | F54: =IF(H54="","",IF(B$7="Dry",ROUND(E54/B$4*B$9,3)&" grams",IF(B$7="Liquid",ROUND(E54/B$4*B$8,2)&" ml","Error"))) ->  | S54: -5.0
A55: 43 | B55: 2017-12-13 | D55: -5.000 | F55: =IF(H55="","",IF(B$7="Dry",ROUND(E55/B$4*B$9,3)&" grams",IF(B$7="Liquid",ROUND(E55/B$4*B$8,2)&" ml","Error"))) ->  | S55: -5.0
A56: 44 | B56: 2017-12-14 | D56: -5.000 | F56: =IF(H56="","",IF(B$7="Dry",ROUND(E56/B$4*B$9,3)&" grams",IF(B$7="Liquid",ROUND(E56/B$4*B$8,2)&" ml","Error"))) ->  | S56: -5.0
A57: 45 | B57: 2017-12-15 | D57: -5.000 | F57: =IF(H57="","",IF(B$7="Dry",ROUND(E57/B$4*B$9,3)&" grams",IF(B$7="Liquid",ROUND(E57/B$4*B$8,2)&" ml","Error"))) ->  | S57: -5.0
A58: 46 | B58: 2017-12-16 | D58: -5.000 | F58: =IF(H58="","",IF(B$7="Dry",ROUND(E58/B$4*B$9,3)&" grams",IF(B$7="Liquid",ROUND(E58/B$4*B$8,2)&" ml","Error"))) ->  | S58: -5.0
A59: 47 | B59: 2017-12-17 | D59: -5.000 | F59: =IF(H59="","",IF(B$7="Dry",ROUND(E59/B$4*B$9,3)&" grams",IF(B$7="Liquid",ROUND(E59/B$4*B$8,2)&" ml","Error"))) ->  | S59: -5.0
A60: 48 | B60: 2017-12-18 | D60: -5.000 | F60: =IF(H60="","",IF(B$7="Dry",ROUND(E60/B$4*B$9,3)&" grams",IF(B$7="Liquid",ROUND(E60/B$4*B$8,2)&" ml","Error"))) ->  | S60: -5.0
A61: 49 | B61: 2017-12-19 | D61: -5.000 | F61: =IF(H61="","",IF(B$7="Dry",ROUND(E61/B$4*B$9,3)&" grams",IF(B$7="Liquid",ROUND(E61/B$4*B$8,2)&" ml","Error"))) ->  | S61: -5.0
A62: 50 | B62: 2017-12-20 | D62: -5.000 | F62: =IF(H62="","",IF(B$7="Dry",ROUND(E62/B$4*B$9,3)&" grams",IF(B$7="Liquid",ROUND(E62/B$4*B$8,2)&" ml","Error"))) ->  | S62: -5.0
A63: 51 | B63: 2017-12-21 | D63: -5.000 | F63: =IF(H63="","",IF(B$7="Dry",ROUND(E63/B$4*B$9,3)&" grams",IF(B$7="Liquid",ROUND(E63/B$4*B$8,2)&" ml","Error"))) ->  | S63: -5.0
A64: 52 | B64: 2017-12-22 | D64: -5.000 | F64: =IF(H64="","",IF(B$7="Dry",ROUND(E64/B$4*B$9,3)&" grams",IF(B$7="Liquid",ROUND(E64/B$4*B$8,2)&" ml","Error"))) ->  | S64: -5.0
A65: 53 | B65: 2017-12-23 | D65: -5.000 | F65: =IF(H65="","",IF(B$7="Dry",ROUND(E65/B$4*B$9,3)&" grams",IF(B$7="Liquid",ROUND(E65/B$4*B$8,2)&" ml","Error"))) ->  | S65: -5.0
A66: 54 | B66: 2017-12-24 | D66: -5.000 | F66: =IF(H66="","",IF(B$7="Dry",ROUND(E66/B$4*B$9,3)&" grams",IF(B$7="Liquid",ROUND(E66/B$4*B$8,2)&" ml","Error"))) ->  | S66: -5.0
A67: 55 | B67: 2017-12-25 | D67: -5.000 | F67: =IF(H67="","",IF(B$7="Dry",ROUND(E67/B$4*B$9,3)&" grams",IF(B$7="Liquid",ROUND(E67/B$4*B$8,2)&" ml","Error"))) ->  | S67: -5.0
A68: 56 | B68: 2017-12-26 | D68: -5.000 | F68: =IF(H68="","",IF(B$7="Dry",ROUND(E68/B$4*B$9,3)&" grams",IF(B$7="Liquid",ROUND(E68/B$4*B$8,2)&" ml","Error"))) ->  | S68: -5.0
A69: 57 | B69: 2017-12-27 | D69: -5.000 | F69: =IF(H69="","",IF(B$7="Dry",ROUND(E69/B$4*B$9,3)&" grams",IF(B$7="Liquid",ROUND(E69/B$4*B$8,2)&" ml","Error"))) ->  | S69: -5.0
A70: 58 | B70: 2017-12-28 | D70: -5.000 | F70: =IF(H70="","",IF(B$7="Dry",ROUND(E70/B$4*B$9,3)&" grams",IF(B$7="Liquid",ROUND(E70/B$4*B$8,2)&" ml","Error"))) ->  | S70: -5.0
A71: 59 | B71: 2017-12-29 | D71: -5.000 | F71: =IF(H71="","",IF(B$7="Dry",ROUND(E71/B$4*B$9,3)&" grams",IF(B$7="Liquid",ROUND(E71/B$4*B$8,2)&" ml","Error"))) ->  | S71: -5.0
A72: 60 | B72: 2017-12-30 | D72: -5.000 | F72: =IF(H72="","",IF(B$7="Dry",ROUND(E72/B$4*B$9,3)&" grams",IF(B$7="Liquid",ROUND(E72/B$4*B$8,2)&" ml","Error"))) ->  | S72: -5.0
A73: 61 | B73: 2017-12-31 | D73: -5.000 | F73: =IF(H73="","",IF(B$7="Dry",ROUND(E73/B$4*B$9,3)&" grams",IF(B$7="Liquid",ROUND(E73/B$4*B$8,2)&" ml","Error"))) ->  | S73: -5.0
A74: 62 | B74: 2018-01-01 | D74: -5.000 | F74: =IF(H74="","",IF(B$7="Dry",ROUND(E74/B$4*B$9,3)&" grams",IF(B$7="Liquid",ROUND(E74/B$4*B$8,2)&" ml","Error"))) ->  | S74: -5.0
A75: 63 | B75: 2018-01-02 | D75: -5.000 | F75: =IF(H75="","",IF(B$7="Dry",ROUND(E75/B$4*B$9,3)&" grams",IF(B$7="Liquid",ROUND(E75/B$4*B$8,2)&" ml","Error"))) ->  | S75: -5.0
A76: 64 | B76: 2018-01-03 | D76: -5.000 | F76: =IF(H76="","",IF(B$7="Dry",ROUND(E76/B$4*B$9,3)&" grams",IF(B$7="Liquid",ROUND(E76/B$4*B$8,2)&" ml","Error"))) ->  | S76: -5.0
A77: 65 | B77: 2018-01-04 | D77: -5.000 | F77: =IF(H77="","",IF(B$7="Dry",ROUND(E77/B$4*B$9,3)&" grams",IF(B$7="Liquid",ROUND(E77/B$4*B$8,2)&" ml","Error"))) ->  | S77: -5.0
A78: 66 | B78: 2018-01-05 | D78: -5.000 | F78: =IF(H78="","",IF(B$7="Dry",ROUND(E78/B$4*B$9,3)&" grams",IF(B$7="Liquid",ROUND(E78/B$4*B$8,2)&" ml","Error"))) ->  | S78: =IF(R78="",-5,AVERAGE((B$3-E78)/B$3*100,R78)) -> -5.0
A79: 67 | B79: 2018-01-06 | D79: =IF(C79="",-5,C79) -> -5.000 | E79: =IF(T79="","",IF(T79=0,C79,IF(T79=1,(C79*C$8),IF(T79=2,(C79*C$7),IF(T79=3,(C79*C$6),IF(T79=4,AVERAGE((C79*C$6),(C79*C$6),(C79*C$6),(C79*C$6),(C79-C$5)),IF(T79=5,(C79-C$5),IF(T79=6,(C79-1.5*C$5),"blue")))))))) ->  | F79: =IF(H79="","",IF(B$7="Dry",ROUND(E79/B$4*B$9,3)&" grams",IF(B$7="Liquid",ROUND(E79/B$4*B$8,2)&" ml","Error"))) ->  | S79: -5.0
A80: 68 | B80: 2018-01-07 | D80: -5.000 | F80: =IF(H80="","",IF(B$7="Dry",ROUND(E80/B$4*B$9,3)&" grams",IF(B$7="Liquid",ROUND(E80/B$4*B$8,2)&" ml","Error"))) ->  | S80: -5.0 | T80: =IF(R80="","",IF(R80>89,6,IF(R80>79,5,IF(R80>69,4,IF(R80>54,3,IF(R80>39,2,IF(R80>29,1,0))))))) -> 
A81: 69 | B81: 2018-01-08 | C81: =E80 ->  | D81: -5.000 | F81: =IF(H81="","",IF(B$7="Dry",ROUND(E81/B$4*B$9,3)&" grams",IF(B$7="Liquid",ROUND(E81/B$4*B$8,2)&" ml","Error"))) ->  | R81: =IF(H81="","",SUM(H81:Q81)) ->  | S81: -5.0
A82: 70 | B82: 2018-01-09 | D82: -5.000 | F82: =IF(H82="","",IF(B$7="Dry",ROUND(E82/B$4*B$9,3)&" grams",IF(B$7="Liquid",ROUND(E82/B$4*B$8,2)&" ml","Error"))) ->  | S82: -5.0
A83: 71 | B83: 2018-01-10 | D83: -5.000 | F83: =IF(H83="","",IF(B$7="Dry",ROUND(E83/B$4*B$9,3)&" grams",IF(B$7="Liquid",ROUND(E83/B$4*B$8,2)&" ml","Error"))) ->  | S83: -5.0
A84: 72 | B84: 2018-01-11 | D84: -5.000 | F84: =IF(H84="","",IF(B$7="Dry",ROUND(E84/B$4*B$9,3)&" grams",IF(B$7="Liquid",ROUND(E84/B$4*B$8,2)&" ml","Error"))) ->  | G84: =IF(T84="","",(C84-E84)/C84) ->  | S84: -5.0
A85: 73 | B85: 2018-01-12 | D85: -5.000 | F85: =IF(H85="","",IF(B$7="Dry",ROUND(E85/B$4*B$9,3)&" grams",IF(B$7="Liquid",ROUND(E85/B$4*B$8,2)&" ml","Error"))) ->  | S85: -5.0
A86: 74 | B86: 2018-01-13 | D86: -5.000 | F86: =IF(H86="","",IF(B$7="Dry",ROUND(E86/B$4*B$9,3)&" grams",IF(B$7="Liquid",ROUND(E86/B$4*B$8,2)&" ml","Error"))) ->  | S86: -5.0
A87: 75 | B87: 2018-01-14 | D87: -5.000 | F87: =IF(H87="","",IF(B$7="Dry",ROUND(E87/B$4*B$9,3)&" grams",IF(B$7="Liquid",ROUND(E87/B$4*B$8,2)&" ml","Error"))) ->  | S87: -5.0
A88: 76 | B88: 2018-01-15 | D88: -5.000 | F88: =IF(H88="","",IF(B$7="Dry",ROUND(E88/B$4*B$9,3)&" grams",IF(B$7="Liquid",ROUND(E88/B$4*B$8,2)&" ml","Error"))) ->  | S88: -5.0
A89: 77 | B89: 2018-01-16 | D89: -5.000 | F89: =IF(H89="","",IF(B$7="Dry",ROUND(E89/B$4*B$9,3)&" grams",IF(B$7="Liquid",ROUND(E89/B$4*B$8,2)&" ml","Error"))) ->  | S89: -5.0
A90: 78 | B90: 2018-01-17 | D90: -5.000 | F90: =IF(H90="","",IF(B$7="Dry",ROUND(E90/B$4*B$9,3)&" grams",IF(B$7="Liquid",ROUND(E90/B$4*B$8,2)&" ml","Error"))) ->  | S90: -5.0
A91: 79 | B91: 2018-01-18 | D91: -5.000 | F91: =IF(H91="","",IF(B$7="Dry",ROUND(E91/B$4*B$9,3)&" grams",IF(B$7="Liquid",ROUND(E91/B$4*B$8,2)&" ml","Error"))) ->  | S91: -5.0
A92: 80 | B92: 2018-01-19 | D92: -5.000 | F92: =IF(H92="","",IF(B$7="Dry",ROUND(E92/B$4*B$9,3)&" grams",IF(B$7="Liquid",ROUND(E92/B$4*B$8,2)&" ml","Error"))) ->  | S92: -5.0
A93: 81 | B93: 2018-01-20 | D93: -5.000 | F93: =IF(H93="","",IF(B$7="Dry",ROUND(E93/B$4*B$9,3)&" grams",IF(B$7="Liquid",ROUND(E93/B$4*B$8,2)&" ml","Error"))) ->  | S93: -5.0
A94: 82 | B94: 2018-01-21 | D94: -5.000 | F94: =IF(H94="","",IF(B$7="Dry",ROUND(E94/B$4*B$9,3)&" grams",IF(B$7="Liquid",ROUND(E94/B$4*B$8,2)&" ml","Error"))) ->  | S94: -5.0
A95: 83 | B95: 2018-01-22 | D95: -5.000 | F95: =IF(H95="","",IF(B$7="Dry",ROUND(E95/B$4*B$9,3)&" grams",IF(B$7="Liquid",ROUND(E95/B$4*B$8,2)&" ml","Error"))) ->  | S95: -5.0
A96: 84 | B96: 2018-01-23 | D96: -5.000 | F96: =IF(H96="","",IF(B$7="Dry",ROUND(E96/B$4*B$9,3)&" grams",IF(B$7="Liquid",ROUND(E96/B$4*B$8,2)&" ml","Error"))) ->  | S96: -5.0
A97: 85 | B97: 2018-01-24 | D97: -5.000 | F97: =IF(H97="","",IF(B$7="Dry",ROUND(E97/B$4*B$9,3)&" grams",IF(B$7="Liquid",ROUND(E97/B$4*B$8,2)&" ml","Error"))) ->  | S97: -5.0
A98: 86 | B98: 2018-01-25 | D98: -5.000 | F98: =IF(H98="","",IF(B$7="Dry",ROUND(E98/B$4*B$9,3)&" grams",IF(B$7="Liquid",ROUND(E98/B$4*B$8,2)&" ml","Error"))) ->  | S98: -5.0
A99: 87 | B99: 2018-01-26 | D99: -5.000 | F99: =IF(H99="","",IF(B$7="Dry",ROUND(E99/B$4*B$9,3)&" grams",IF(B$7="Liquid",ROUND(E99/B$4*B$8,2)&" ml","Error"))) ->  | S99: -5.0
A100: 88 | B100: 2018-01-27 | D100: -5.000 | F100: =IF(H100="","",IF(B$7="Dry",ROUND(E100/B$4*B$9,3)&" grams",IF(B$7="Liquid",ROUND(E100/B$4*B$8,2)&" ml","Error"))) ->  | S100: -5.0
A101: 89 | B101: 2018-01-28 | D101: -5.000 | F101: =IF(H101="","",IF(B$7="Dry",ROUND(E101/B$4*B$9,3)&" grams",IF(B$7="Liquid",ROUND(E101/B$4*B$8,2)&" ml","Error"))) ->  | S101: -5.0
A102: 90 | B102: 2018-01-29 | D102: -5.000 | F102: =IF(H102="","",IF(B$7="Dry",ROUND(E102/B$4*B$9,3)&" grams",IF(B$7="Liquid",ROUND(E102/B$4*B$8,2)&" ml","Error"))) ->  | S102: -5.0
A103: 91 | B103: 2018-01-30 | D103: -5.000 | F103: =IF(H103="","",IF(B$7="Dry",ROUND(E103/B$4*B$9,3)&" grams",IF(B$7="Liquid",ROUND(E103/B$4*B$8,2)&" ml","Error"))) ->  | S103: -5.0
A104: 92 | B104: 2018-01-31 | D104: -5.000 | F104: =IF(H104="","",IF(B$7="Dry",ROUND(E104/B$4*B$9,3)&" grams",IF(B$7="Liquid",ROUND(E104/B$4*B$8,2)&" ml","Error"))) ->  | S104: -5.0
A105: 93 | B105: 2018-02-01 | D105: -5.000 | F105: =IF(H105="","",IF(B$7="Dry",ROUND(E105/B$4*B$9,3)&" grams",IF(B$7="Liquid",ROUND(E105/B$4*B$8,2)&" ml","Error"))) ->  | S105: -5.0
A106: 94 | B106: 2018-02-02 | D106: -5.000 | F106: =IF(H106="","",IF(B$7="Dry",ROUND(E106/B$4*B$9,3)&" grams",IF(B$7="Liquid",ROUND(E106/B$4*B$8,2)&" ml","Error"))) ->  | S106: -5.0
A107: =A106+1 -> 95 | B107: =B106+1 -> 2018-02-03 | D107: -5.000 | F107: =IF(H107="","",IF(B$7="Dry",ROUND(E107/B$4*B$9,3)&" grams",IF(B$7="Liquid",ROUND(E107/B$4*B$8,2)&" ml","Error"))) ->  | S107: -5.0
A108: 96 | B108: 2018-02-04 | D108: -5.000 | F108: =IF(H108="","",IF(B$7="Dry",ROUND(E108/B$4*B$9,3)&" grams",IF(B$7="Liquid",ROUND(E108/B$4*B$8,2)&" ml","Error"))) ->  | S108: -5.0
A109: 97 | B109: 2018-02-05 | D109: -5.000 | F109: =IF(H109="","",IF(B$7="Dry",ROUND(E109/B$4*B$9,3)&" grams",IF(B$7="Liquid",ROUND(E109/B$4*B$8,2)&" ml","Error"))) ->  | S109: -5.0
A110: 98 | B110: 2018-02-06 | D110: -5.000 | F110: =IF(H110="","",IF(B$7="Dry",ROUND(E110/B$4*B$9,3)&" grams",IF(B$7="Liquid",ROUND(E110/B$4*B$8,2)&" ml","Error"))) ->  | S110: -5.0
A111: 99 | B111: 2018-02-07 | D111: -5.000 | F111: =IF(H111="","",IF(B$7="Dry",ROUND(E111/B$4*B$9,3)&" grams",IF(B$7="Liquid",ROUND(E111/B$4*B$8,2)&" ml","Error"))) ->  | S111: -5.0
A112: 100 | B112: 2018-02-08 | D112: -5.000 | F112: =IF(H112="","",IF(B$7="Dry",ROUND(E112/B$4*B$9,3)&" grams",IF(B$7="Liquid",ROUND(E112/B$4*B$8,2)&" ml","Error"))) ->  | S112: -5.0
A113: 101 | B113: 2018-02-09 | D113: -5.000 | F113: =IF(H113="","",IF(B$7="Dry",ROUND(E113/B$4*B$9,3)&" grams",IF(B$7="Liquid",ROUND(E113/B$4*B$8,2)&" ml","Error"))) ->  | S113: -5.0
A114: 102 | B114: 2018-02-10 | D114: -5.000 | F114: =IF(H114="","",IF(B$7="Dry",ROUND(E114/B$4*B$9,3)&" grams",IF(B$7="Liquid",ROUND(E114/B$4*B$8,2)&" ml","Error"))) ->  | S114: -5.0
A115: 103 | B115: 2018-02-11 | D115: -5.000 | F115: =IF(H115="","",IF(B$7="Dry",ROUND(E115/B$4*B$9,3)&" grams",IF(B$7="Liquid",ROUND(E115/B$4*B$8,2)&" ml","Error"))) ->  | S115: -5.0
A116: 104 | B116: 2018-02-12 | D116: -5.000 | F116: =IF(H116="","",IF(B$7="Dry",ROUND(E116/B$4*B$9,3)&" grams",IF(B$7="Liquid",ROUND(E116/B$4*B$8,2)&" ml","Error"))) ->  | S116: -5.0
A117: 105 | B117: 2018-02-13 | D117: -5.000 | F117: =IF(H117="","",IF(B$7="Dry",ROUND(E117/B$4*B$9,3)&" grams",IF(B$7="Liquid",ROUND(E117/B$4*B$8,2)&" ml","Error"))) ->  | S117: -5.0
A118: 106 | B118: 2018-02-14 | D118: -5.000 | F118: =IF(H118="","",IF(B$7="Dry",ROUND(E118/B$4*B$9,3)&" grams",IF(B$7="Liquid",ROUND(E118/B$4*B$8,2)&" ml","Error"))) ->  | S118: -5.0
A119: 107 | B119: 2018-02-15 | D119: -5.000 | F119: =IF(H119="","",IF(B$7="Dry",ROUND(E119/B$4*B$9,3)&" grams",IF(B$7="Liquid",ROUND(E119/B$4*B$8,2)&" ml","Error"))) ->  | S119: -5.0
A120: 108 | B120: 2018-02-16 | D120: -5.000 | F120: =IF(H120="","",IF(B$7="Dry",ROUND(E120/B$4*B$9,3)&" grams",IF(B$7="Liquid",ROUND(E120/B$4*B$8,2)&" ml","Error"))) ->  | S120: -5.0
A121: 109 | B121: 2018-02-17 | D121: -5.000 | F121: =IF(H121="","",IF(B$7="Dry",ROUND(E121/B$4*B$9,3)&" grams",IF(B$7="Liquid",ROUND(E121/B$4*B$8,2)&" ml","Error"))) ->  | S121: -5.0
A122: 110 | B122: 2018-02-18 | D122: -5.000 | F122: =IF(H122="","",IF(B$7="Dry",ROUND(E122/B$4*B$9,3)&" grams",IF(B$7="Liquid",ROUND(E122/B$4*B$8,2)&" ml","Error"))) ->  | S122: -5.0
A123: 111 | B123: 2018-02-19 | D123: -5.000 | F123: =IF(H123="","",IF(B$7="Dry",ROUND(E123/B$4*B$9,3)&" grams",IF(B$7="Liquid",ROUND(E123/B$4*B$8,2)&" ml","Error"))) ->  | S123: -5.0
A124: 112 | B124: 2018-02-20 | D124: -5.000 | F124: =IF(H124="","",IF(B$7="Dry",ROUND(E124/B$4*B$9,3)&" grams",IF(B$7="Liquid",ROUND(E124/B$4*B$8,2)&" ml","Error"))) ->  | S124: -5.0
A125: 113 | B125: 2018-02-21 | D125: -5.000 | F125: =IF(H125="","",IF(B$7="Dry",ROUND(E125/B$4*B$9,3)&" grams",IF(B$7="Liquid",ROUND(E125/B$4*B$8,2)&" ml","Error"))) ->  | S125: -5.0
A126: 114 | B126: 2018-02-22 | D126: -5.000 | F126: =IF(H126="","",IF(B$7="Dry",ROUND(E126/B$4*B$9,3)&" grams",IF(B$7="Liquid",ROUND(E126/B$4*B$8,2)&" ml","Error"))) ->  | S126: -5.0
A127: 115 | B127: 2018-02-23 | D127: -5.000 | F127: =IF(H127="","",IF(B$7="Dry",ROUND(E127/B$4*B$9,3)&" grams",IF(B$7="Liquid",ROUND(E127/B$4*B$8,2)&" ml","Error"))) ->  | S127: -5.0
A128: 116 | B128: 2018-02-24 | D128: -5.000 | F128: =IF(H128="","",IF(B$7="Dry",ROUND(E128/B$4*B$9,3)&" grams",IF(B$7="Liquid",ROUND(E128/B$4*B$8,2)&" ml","Error"))) ->  | S128: -5.0
A129: 117 | B129: 2018-02-25 | D129: -5.000 | F129: =IF(H129="","",IF(B$7="Dry",ROUND(E129/B$4*B$9,3)&" grams",IF(B$7="Liquid",ROUND(E129/B$4*B$8,2)&" ml","Error"))) ->  | S129: -5.0
A130: 118 | B130: 2018-02-26 | D130: -5.000 | F130: =IF(H130="","",IF(B$7="Dry",ROUND(E130/B$4*B$9,3)&" grams",IF(B$7="Liquid",ROUND(E130/B$4*B$8,2)&" ml","Error"))) ->  | S130: -5.0
A131: 119 | B131: 2018-02-27 | D131: -5.000 | F131: =IF(H131="","",IF(B$7="Dry",ROUND(E131/B$4*B$9,3)&" grams",IF(B$7="Liquid",ROUND(E131/B$4*B$8,2)&" ml","Error"))) ->  | S131: -5.0
A132: 120 | B132: 2018-02-28 | D132: -5.000 | F132: =IF(H132="","",IF(B$7="Dry",ROUND(E132/B$4*B$9,3)&" grams",IF(B$7="Liquid",ROUND(E132/B$4*B$8,2)&" ml","Error"))) ->  | S132: -5.0
A133: 121 | B133: 2018-03-01 | D133: -5.000 | F133: =IF(H133="","",IF(B$7="Dry",ROUND(E133/B$4*B$9,3)&" grams",IF(B$7="Liquid",ROUND(E133/B$4*B$8,2)&" ml","Error"))) ->  | S133: -5.0
A134: 122 | B134: 2018-03-02 | D134: -5.000 | F134: =IF(H134="","",IF(B$7="Dry",ROUND(E134/B$4*B$9,3)&" grams",IF(B$7="Liquid",ROUND(E134/B$4*B$8,2)&" ml","Error"))) ->  | S134: -5.0
A135: 123 | B135: 2018-03-03 | D135: -5.000 | F135: =IF(H135="","",IF(B$7="Dry",ROUND(E135/B$4*B$9,3)&" grams",IF(B$7="Liquid",ROUND(E135/B$4*B$8,2)&" ml","Error"))) ->  | S135: -5.0
A136: 124 | B136: 2018-03-04 | D136: -5.000 | F136: =IF(H136="","",IF(B$7="Dry",ROUND(E136/B$4*B$9,3)&" grams",IF(B$7="Liquid",ROUND(E136/B$4*B$8,2)&" ml","Error"))) ->  | S136: -5.0
A137: 125 | B137: 2018-03-05 | D137: -5.000 | F137: =IF(H137="","",IF(B$7="Dry",ROUND(E137/B$4*B$9,3)&" grams",IF(B$7="Liquid",ROUND(E137/B$4*B$8,2)&" ml","Error"))) ->  | S137: -5.0
A138: 126 | B138: 2018-03-06 | D138: -5.000 | F138: =IF(H138="","",IF(B$7="Dry",ROUND(E138/B$4*B$9,3)&" grams",IF(B$7="Liquid",ROUND(E138/B$4*B$8,2)&" ml","Error"))) ->  | S138: -5.0
A139: 127 | B139: 2018-03-07 | D139: -5.000 | F139: =IF(H139="","",IF(B$7="Dry",ROUND(E139/B$4*B$9,3)&" grams",IF(B$7="Liquid",ROUND(E139/B$4*B$8,2)&" ml","Error"))) ->  | S139: -5.0
A140: 128 | B140: 2018-03-08 | D140: -5.000 | F140: =IF(H140="","",IF(B$7="Dry",ROUND(E140/B$4*B$9,3)&" grams",IF(B$7="Liquid",ROUND(E140/B$4*B$8,2)&" ml","Error"))) ->  | S140: -5.0
A141: 129 | B141: 2018-03-09 | D141: -5.000 | F141: =IF(H141="","",IF(B$7="Dry",ROUND(E141/B$4*B$9,3)&" grams",IF(B$7="Liquid",ROUND(E141/B$4*B$8,2)&" ml","Error"))) ->  | S141: -5.0
A142: 130 | B142: 2018-03-10 | D142: -5.000 | F142: =IF(H142="","",IF(B$7="Dry",ROUND(E142/B$4*B$9,3)&" grams",IF(B$7="Liquid",ROUND(E142/B$4*B$8,2)&" ml","Error"))) ->  | S142: =IF(R142="",-5,AVERAGE((B$3-E142)/B$3*100,R142)) -> -5.0
A143: 131 | B143: 2018-03-11 | D143: =IF(C143="",-5,C143) -> -5.000 | E143: =IF(T143="","",IF(T143=0,C143,IF(T143=1,(C143*C$8),IF(T143=2,(C143*C$7),IF(T143=3,(C143*C$6),IF(T143=4,AVERAGE((C143*C$6),(C143*C$6),(C143*C$6),(C143*C$6),(C143-C$5)),IF(T143=5,(C143-C$5),IF(T143=6,(C143-1.5*C$5),"blue")))))))) ->  | F143: =IF(H143="","",IF(B$7="Dry",ROUND(E143/B$4*B$9,3)&" grams",IF(B$7="Liquid",ROUND(E143/B$4*B$8,2)&" ml","Error"))) ->  | S143: -5.0
A144: 132 | B144: 2018-03-12 | D144: -5.000 | F144: =IF(H144="","",IF(B$7="Dry",ROUND(E144/B$4*B$9,3)&" grams",IF(B$7="Liquid",ROUND(E144/B$4*B$8,2)&" ml","Error"))) ->  | S144: -5.0 | T144: =IF(R144="","",IF(R144>89,6,IF(R144>79,5,IF(R144>69,4,IF(R144>54,3,IF(R144>39,2,IF(R144>29,1,0))))))) -> 
A145: 133 | B145: 2018-03-13 | C145: =E144 ->  | D145: -5.000 | F145: =IF(H145="","",IF(B$7="Dry",ROUND(E145/B$4*B$9,3)&" grams",IF(B$7="Liquid",ROUND(E145/B$4*B$8,2)&" ml","Error"))) ->  | R145: =IF(H145="","",SUM(H145:Q145)) ->  | S145: -5.0
A146: 134 | B146: 2018-03-14 | D146: -5.000 | F146: =IF(H146="","",IF(B$7="Dry",ROUND(E146/B$4*B$9,3)&" grams",IF(B$7="Liquid",ROUND(E146/B$4*B$8,2)&" ml","Error"))) ->  | S146: -5.0
A147: 135 | B147: 2018-03-15 | D147: -5.000 | F147: =IF(H147="","",IF(B$7="Dry",ROUND(E147/B$4*B$9,3)&" grams",IF(B$7="Liquid",ROUND(E147/B$4*B$8,2)&" ml","Error"))) ->  | S147: -5.0
A148: 136 | B148: 2018-03-16 | D148: -5.000 | F148: =IF(H148="","",IF(B$7="Dry",ROUND(E148/B$4*B$9,3)&" grams",IF(B$7="Liquid",ROUND(E148/B$4*B$8,2)&" ml","Error"))) ->  | G148: =IF(T148="","",(C148-E148)/C148) ->  | S148: -5.0
A149: 137 | B149: 2018-03-17 | D149: -5.000 | F149: =IF(H149="","",IF(B$7="Dry",ROUND(E149/B$4*B$9,3)&" grams",IF(B$7="Liquid",ROUND(E149/B$4*B$8,2)&" ml","Error"))) ->  | S149: -5.0
A150: 138 | B150: 2018-03-18 | D150: -5.000 | F150: =IF(H150="","",IF(B$7="Dry",ROUND(E150/B$4*B$9,3)&" grams",IF(B$7="Liquid",ROUND(E150/B$4*B$8,2)&" ml","Error"))) ->  | S150: -5.0
A151: 139 | B151: 2018-03-19 | D151: -5.000 | F151: =IF(H151="","",IF(B$7="Dry",ROUND(E151/B$4*B$9,3)&" grams",IF(B$7="Liquid",ROUND(E151/B$4*B$8,2)&" ml","Error"))) ->  | S151: -5.0
A152: 140 | B152: 2018-03-20 | D152: -5.000 | F152: =IF(H152="","",IF(B$7="Dry",ROUND(E152/B$4*B$9,3)&" grams",IF(B$7="Liquid",ROUND(E152/B$4*B$8,2)&" ml","Error"))) ->  | S152: -5.0
A153: 141 | B153: 2018-03-21 | D153: -5.000 | F153: =IF(H153="","",IF(B$7="Dry",ROUND(E153/B$4*B$9,3)&" grams",IF(B$7="Liquid",ROUND(E153/B$4*B$8,2)&" ml","Error"))) ->  | S153: -5.0
A154: 142 | B154: 2018-03-22 | D154: -5.000 | F154: =IF(H154="","",IF(B$7="Dry",ROUND(E154/B$4*B$9,3)&" grams",IF(B$7="Liquid",ROUND(E154/B$4*B$8,2)&" ml","Error"))) ->  | S154: -5.0
A155: 143 | B155: 2018-03-23 | D155: -5.000 | F155: =IF(H155="","",IF(B$7="Dry",ROUND(E155/B$4*B$9,3)&" grams",IF(B$7="Liquid",ROUND(E155/B$4*B$8,2)&" ml","Error"))) ->  | S155: -5.0
A156: 144 | B156: 2018-03-24 | D156: -5.000 | F156: =IF(H156="","",IF(B$7="Dry",ROUND(E156/B$4*B$9,3)&" grams",IF(B$7="Liquid",ROUND(E156/B$4*B$8,2)&" ml","Error"))) ->  | S156: -5.0
A157: 145 | B157: 2018-03-25 | D157: -5.000 | F157: =IF(H157="","",IF(B$7="Dry",ROUND(E157/B$4*B$9,3)&" grams",IF(B$7="Liquid",ROUND(E157/B$4*B$8,2)&" ml","Error"))) ->  | S157: -5.0
A158: 146 | B158: 2018-03-26 | D158: -5.000 | F158: =IF(H158="","",IF(B$7="Dry",ROUND(E158/B$4*B$9,3)&" grams",IF(B$7="Liquid",ROUND(E158/B$4*B$8,2)&" ml","Error"))) ->  | S158: -5.0
A159: 147 | B159: 2018-03-27 | D159: -5.000 | F159: =IF(H159="","",IF(B$7="Dry",ROUND(E159/B$4*B$9,3)&" grams",IF(B$7="Liquid",ROUND(E159/B$4*B$8,2)&" ml","Error"))) ->  | S159: -5.0
A160: 148 | B160: 2018-03-28 | D160: -5.000 | F160: =IF(H160="","",IF(B$7="Dry",ROUND(E160/B$4*B$9,3)&" grams",IF(B$7="Liquid",ROUND(E160/B$4*B$8,2)&" ml","Error"))) ->  | S160: -5.0
A161: 149 | B161: 2018-03-29 | D161: -5.000 | F161: =IF(H161="","",IF(B$7="Dry",ROUND(E161/B$4*B$9,3)&" grams",IF(B$7="Liquid",ROUND(E161/B$4*B$8,2)&" ml","Error"))) ->  | S161: -5.0
A162: 150 | B162: 2018-03-30 | D162: -5.000 | F162: =IF(H162="","",IF(B$7="Dry",ROUND(E162/B$4*B$9,3)&" grams",IF(B$7="Liquid",ROUND(E162/B$4*B$8,2)&" ml","Error"))) ->  | S162: -5.0
A163: 151 | B163: 2018-03-31 | D163: -5.000 | F163: =IF(H163="","",IF(B$7="Dry",ROUND(E163/B$4*B$9,3)&" grams",IF(B$7="Liquid",ROUND(E163/B$4*B$8,2)&" ml","Error"))) ->  | S163: -5.0
A164: 152 | B164: 2018-04-01 | D164: -5.000 | F164: =IF(H164="","",IF(B$7="Dry",ROUND(E164/B$4*B$9,3)&" grams",IF(B$7="Liquid",ROUND(E164/B$4*B$8,2)&" ml","Error"))) ->  | S164: -5.0
A165: 153 | B165: 2018-04-02 | D165: -5.000 | F165: =IF(H165="","",IF(B$7="Dry",ROUND(E165/B$4*B$9,3)&" grams",IF(B$7="Liquid",ROUND(E165/B$4*B$8,2)&" ml","Error"))) ->  | S165: -5.0
A166: 154 | B166: 2018-04-03 | D166: -5.000 | F166: =IF(H166="","",IF(B$7="Dry",ROUND(E166/B$4*B$9,3)&" grams",IF(B$7="Liquid",ROUND(E166/B$4*B$8,2)&" ml","Error"))) ->  | S166: -5.0
A167: 155 | B167: 2018-04-04 | D167: -5.000 | F167: =IF(H167="","",IF(B$7="Dry",ROUND(E167/B$4*B$9,3)&" grams",IF(B$7="Liquid",ROUND(E167/B$4*B$8,2)&" ml","Error"))) ->  | S167: -5.0
A168: 156 | B168: 2018-04-05 | D168: -5.000 | F168: =IF(H168="","",IF(B$7="Dry",ROUND(E168/B$4*B$9,3)&" grams",IF(B$7="Liquid",ROUND(E168/B$4*B$8,2)&" ml","Error"))) ->  | S168: -5.0
A169: 157 | B169: 2018-04-06 | D169: -5.000 | F169: =IF(H169="","",IF(B$7="Dry",ROUND(E169/B$4*B$9,3)&" grams",IF(B$7="Liquid",ROUND(E169/B$4*B$8,2)&" ml","Error"))) ->  | S169: -5.0
A170: 158 | B170: 2018-04-07 | D170: -5.000 | F170: =IF(H170="","",IF(B$7="Dry",ROUND(E170/B$4*B$9,3)&" grams",IF(B$7="Liquid",ROUND(E170/B$4*B$8,2)&" ml","Error"))) ->  | S170: -5.0
A171: =A170+1 -> 159 | B171: =B170+1 -> 2018-04-08 | D171: -5.000 | F171: =IF(H171="","",IF(B$7="Dry",ROUND(E171/B$4*B$9,3)&" grams",IF(B$7="Liquid",ROUND(E171/B$4*B$8,2)&" ml","Error"))) ->  | S171: -5.0
A172: 160 | B172: 2018-04-09 | D172: -5.000 | F172: =IF(H172="","",IF(B$7="Dry",ROUND(E172/B$4*B$9,3)&" grams",IF(B$7="Liquid",ROUND(E172/B$4*B$8,2)&" ml","Error"))) ->  | S172: -5.0
A173: 161 | B173: 2018-04-10 | D173: -5.000 | F173: =IF(H173="","",IF(B$7="Dry",ROUND(E173/B$4*B$9,3)&" grams",IF(B$7="Liquid",ROUND(E173/B$4*B$8,2)&" ml","Error"))) ->  | S173: -5.0
A174: 162 | B174: 2018-04-11 | D174: -5.000 | F174: =IF(H174="","",IF(B$7="Dry",ROUND(E174/B$4*B$9,3)&" grams",IF(B$7="Liquid",ROUND(E174/B$4*B$8,2)&" ml","Error"))) ->  | S174: -5.0
A175: 163 | B175: 2018-04-12 | D175: -5.000 | F175: =IF(H175="","",IF(B$7="Dry",ROUND(E175/B$4*B$9,3)&" grams",IF(B$7="Liquid",ROUND(E175/B$4*B$8,2)&" ml","Error"))) ->  | S175: -5.0
A176: 164 | B176: 2018-04-13 | D176: -5.000 | F176: =IF(H176="","",IF(B$7="Dry",ROUND(E176/B$4*B$9,3)&" grams",IF(B$7="Liquid",ROUND(E176/B$4*B$8,2)&" ml","Error"))) ->  | S176: -5.0
A177: 165 | B177: 2018-04-14 | D177: -5.000 | F177: =IF(H177="","",IF(B$7="Dry",ROUND(E177/B$4*B$9,3)&" grams",IF(B$7="Liquid",ROUND(E177/B$4*B$8,2)&" ml","Error"))) ->  | S177: -5.0
A178: 166 | B178: 2018-04-15 | D178: -5.000 | F178: =IF(H178="","",IF(B$7="Dry",ROUND(E178/B$4*B$9,3)&" grams",IF(B$7="Liquid",ROUND(E178/B$4*B$8,2)&" ml","Error"))) ->  | S178: -5.0
A179: 167 | B179: 2018-04-16 | D179: -5.000 | F179: =IF(H179="","",IF(B$7="Dry",ROUND(E179/B$4*B$9,3)&" grams",IF(B$7="Liquid",ROUND(E179/B$4*B$8,2)&" ml","Error"))) ->  | S179: -5.0
A180: 168 | B180: 2018-04-17 | D180: -5.000 | F180: =IF(H180="","",IF(B$7="Dry",ROUND(E180/B$4*B$9,3)&" grams",IF(B$7="Liquid",ROUND(E180/B$4*B$8,2)&" ml","Error"))) ->  | S180: -5.0
A181: 169 | B181: 2018-04-18 | D181: -5.000 | F181: =IF(H181="","",IF(B$7="Dry",ROUND(E181/B$4*B$9,3)&" grams",IF(B$7="Liquid",ROUND(E181/B$4*B$8,2)&" ml","Error"))) ->  | S181: -5.0
A182: 170 | B182: 2018-04-19 | D182: -5.000 | F182: =IF(H182="","",IF(B$7="Dry",ROUND(E182/B$4*B$9,3)&" grams",IF(B$7="Liquid",ROUND(E182/B$4*B$8,2)&" ml","Error"))) ->  | S182: -5.0
A183: 171 | B183: 2018-04-20 | D183: -5.000 | F183: =IF(H183="","",IF(B$7="Dry",ROUND(E183/B$4*B$9,3)&" grams",IF(B$7="Liquid",ROUND(E183/B$4*B$8,2)&" ml","Error"))) ->  | S183: -5.0
A184: 172 | B184: 2018-04-21 | D184: -5.000 | F184: =IF(H184="","",IF(B$7="Dry",ROUND(E184/B$4*B$9,3)&" grams",IF(B$7="Liquid",ROUND(E184/B$4*B$8,2)&" ml","Error"))) ->  | S184: -5.0
A185: 173 | B185: 2018-04-22 | D185: -5.000 | F185: =IF(H185="","",IF(B$7="Dry",ROUND(E185/B$4*B$9,3)&" grams",IF(B$7="Liquid",ROUND(E185/B$4*B$8,2)&" ml","Error"))) ->  | S185: -5.0
A186: 174 | B186: 2018-04-23 | D186: -5.000 | F186: =IF(H186="","",IF(B$7="Dry",ROUND(E186/B$4*B$9,3)&" grams",IF(B$7="Liquid",ROUND(E186/B$4*B$8,2)&" ml","Error"))) ->  | S186: -5.0
A187: 175 | B187: 2018-04-24 | D187: -5.000 | F187: =IF(H187="","",IF(B$7="Dry",ROUND(E187/B$4*B$9,3)&" grams",IF(B$7="Liquid",ROUND(E187/B$4*B$8,2)&" ml","Error"))) ->  | S187: -5.0
A188: 176 | B188: 2018-04-25 | D188: -5.000 | F188: =IF(H188="","",IF(B$7="Dry",ROUND(E188/B$4*B$9,3)&" grams",IF(B$7="Liquid",ROUND(E188/B$4*B$8,2)&" ml","Error"))) ->  | S188: -5.0
A189: 177 | B189: 2018-04-26 | D189: -5.000 | F189: =IF(H189="","",IF(B$7="Dry",ROUND(E189/B$4*B$9,3)&" grams",IF(B$7="Liquid",ROUND(E189/B$4*B$8,2)&" ml","Error"))) ->  | S189: -5.0
A190: 178 | B190: 2018-04-27 | D190: -5.000 | F190: =IF(H190="","",IF(B$7="Dry",ROUND(E190/B$4*B$9,3)&" grams",IF(B$7="Liquid",ROUND(E190/B$4*B$8,2)&" ml","Error"))) ->  | S190: -5.0
A191: 179 | B191: 2018-04-28 | D191: -5.000 | F191: =IF(H191="","",IF(B$7="Dry",ROUND(E191/B$4*B$9,3)&" grams",IF(B$7="Liquid",ROUND(E191/B$4*B$8,2)&" ml","Error"))) ->  | S191: -5.0
A192: 180 | B192: 2018-04-29 | D192: -5.000 | F192: =IF(H192="","",IF(B$7="Dry",ROUND(E192/B$4*B$9,3)&" grams",IF(B$7="Liquid",ROUND(E192/B$4*B$8,2)&" ml","Error"))) ->  | S192: -5.0
A193: 181 | B193: 2018-04-30 | D193: -5.000 | F193: =IF(H193="","",IF(B$7="Dry",ROUND(E193/B$4*B$9,3)&" grams",IF(B$7="Liquid",ROUND(E193/B$4*B$8,2)&" ml","Error"))) ->  | S193: -5.0
A194: 182 | B194: 2018-05-01 | D194: -5.000 | F194: =IF(H194="","",IF(B$7="Dry",ROUND(E194/B$4*B$9,3)&" grams",IF(B$7="Liquid",ROUND(E194/B$4*B$8,2)&" ml","Error"))) ->  | S194: -5.0
A195: 183 | B195: 2018-05-02 | D195: -5.000 | F195: =IF(H195="","",IF(B$7="Dry",ROUND(E195/B$4*B$9,3)&" grams",IF(B$7="Liquid",ROUND(E195/B$4*B$8,2)&" ml","Error"))) ->  | S195: -5.0
A196: 184 | B196: 2018-05-03 | D196: -5.000 | F196: =IF(H196="","",IF(B$7="Dry",ROUND(E196/B$4*B$9,3)&" grams",IF(B$7="Liquid",ROUND(E196/B$4*B$8,2)&" ml","Error"))) ->  | S196: -5.0
A197: 185 | B197: 2018-05-04 | D197: -5.000 | F197: =IF(H197="","",IF(B$7="Dry",ROUND(E197/B$4*B$9,3)&" grams",IF(B$7="Liquid",ROUND(E197/B$4*B$8,2)&" ml","Error"))) ->  | S197: -5.0
A198: 186 | B198: 2018-05-05 | D198: -5.000 | F198: =IF(H198="","",IF(B$7="Dry",ROUND(E198/B$4*B$9,3)&" grams",IF(B$7="Liquid",ROUND(E198/B$4*B$8,2)&" ml","Error"))) ->  | S198: -5.0
A199: 187 | B199: 2018-05-06 | D199: -5.000 | F199: =IF(H199="","",IF(B$7="Dry",ROUND(E199/B$4*B$9,3)&" grams",IF(B$7="Liquid",ROUND(E199/B$4*B$8,2)&" ml","Error"))) ->  | S199: -5.0
A200: 188 | B200: 2018-05-07 | D200: -5.000 | F200: =IF(H200="","",IF(B$7="Dry",ROUND(E200/B$4*B$9,3)&" grams",IF(B$7="Liquid",ROUND(E200/B$4*B$8,2)&" ml","Error"))) ->  | S200: -5.0
A201: 189 | B201: 2018-05-08 | D201: -5.000 | F201: =IF(H201="","",IF(B$7="Dry",ROUND(E201/B$4*B$9,3)&" grams",IF(B$7="Liquid",ROUND(E201/B$4*B$8,2)&" ml","Error"))) ->  | S201: -5.0
A202: 190 | B202: 2018-05-09 | D202: -5.000 | F202: =IF(H202="","",IF(B$7="Dry",ROUND(E202/B$4*B$9,3)&" grams",IF(B$7="Liquid",ROUND(E202/B$4*B$8,2)&" ml","Error"))) ->  | S202: -5.0
... 410 more rows
